[Event "Early-Titled-Tuesday-Blitz-March-26-2024"]
[Site "Chess.com"]
[Date "2024.03.26"]
[Round "8"]
[White "lukazz029"]
[Black "ChessSwole"]
[Result "0-1"]
[WhiteElo "2022"]
[BlackElo "2664"]
[TimeControl "180+1"]
[EndTime "9:25:26 PDT"]
[Termination "ChessSwole won on time"]

1. d4 {[%clk 0:03:00.9]} 1... e6 {[%clk 0:02:59.3]} 2. c4 {[%clk 0:02:58]} 2...
f5 {[%clk 0:02:58.4]} 3. Nc3 {[%clk 0:02:56.9]} 3... Nf6 {[%clk 0:02:58.1]} 4.
g3 {[%clk 0:02:56]} 4... Be7 {[%clk 0:02:57.8]} 5. Bg2 {[%clk 0:02:56.4]} 5...
O-O {[%clk 0:02:58.5]} 6. Nh3 {[%clk 0:02:56.9]} 6... d6 {[%clk 0:02:58]} 7. O-O
{[%clk 0:02:56.1]} 7... Qe8 {[%clk 0:02:43.1]} 8. Nf4 {[%clk 0:02:55.3]} 8... c6
{[%clk 0:02:43]} 9. Qb3 {[%clk 0:02:36.1]} 9... Kh8 {[%clk 0:02:33]} 10. d5
{[%clk 0:02:34.5]} 10... e5 {[%clk 0:02:32.8]} 11. Ne6 {[%clk 0:02:32.7]} 11...
Bxe6 {[%clk 0:02:31.7]} 12. Qxb7 {[%clk 0:02:33.2]} 12... cxd5 {[%clk
0:02:19.3]} 13. cxd5 {[%clk 0:02:30.7]} 13... Nbd7 {[%clk 0:01:31.6]} 14. dxe6
{[%clk 0:02:28.3]} 14... Nc5 {[%clk 0:01:31.9]} 15. Qxa8 {[%clk 0:02:26.4]}
15... Qxa8 {[%clk 0:01:31.8]} 16. Bxa8 {[%clk 0:02:25.7]} 16... Rxa8 {[%clk
0:01:32.7]} 17. Be3 {[%clk 0:02:15.2]} 17... Nxe6 {[%clk 0:01:32.9]} 18. Rfd1
{[%clk 0:02:08.5]} 18... Kg8 {[%clk 0:01:17.6]} 19. Rac1 {[%clk 0:02:02.8]}
19... Kf7 {[%clk 0:01:12.9]} 20. Nd5 {[%clk 0:02:01.5]} 20... Nxd5 {[%clk
0:01:00.4]} 21. Rxd5 {[%clk 0:02:02.4]} 21... g5 {[%clk 0:01:00.9]} 22. f3
{[%clk 0:01:56.8]} 22... h5 {[%clk 0:00:49.9]} 23. Rb5 {[%clk 0:01:54.7]} 23...
Kf6 {[%clk 0:00:45.6]} 24. Rb7 {[%clk 0:01:51.6]} 24... a6 {[%clk 0:00:43.3]}
25. a4 {[%clk 0:01:41.1]} 25... f4 {[%clk 0:00:42.3]} 26. Bf2 {[%clk 0:01:40.9]}
26... g4 {[%clk 0:00:41.8]} 27. gxf4 {[%clk 0:01:30]} 27... Nxf4 {[%clk
0:00:41]} 28. Kf1 {[%clk 0:01:23.7]} 28... Ke6 {[%clk 0:00:23]} 29. Rcc7 {[%clk
0:01:18.1]} 29... Bg5 {[%clk 0:00:21.9]} 30. b4 {[%clk 0:01:04.4]} 30... Nh3
{[%clk 0:00:18.9]} 31. a5 {[%clk 0:00:59.4]} 31... Rf8 {[%clk 0:00:18.2]} 32.
Rc6 {[%clk 0:00:32.2]} 32... gxf3 {[%clk 0:00:17.7]} 33. Bc5 {[%clk 0:00:21.8]}
33... fxe2+ {[%clk 0:00:17]} 34. Kxe2 {[%clk 0:00:21.3]} 34... Be7 {[%clk
0:00:16.7]} 35. Rbb6 {[%clk 0:00:18.4]} 35... Nf4+ {[%clk 0:00:16.9]} 36. Kd1
{[%clk 0:00:17.6]} 36... Rd8 {[%clk 0:00:16.7]} 37. Rxa6 {[%clk 0:00:16]} 37...
Nd3 {[%clk 0:00:16.2]} 38. Bb6 {[%clk 0:00:13.5]} 38... Rg8 {[%clk 0:00:15.3]}
39. Bc7 {[%clk 0:00:13]} 39... Rg1+ {[%clk 0:00:15]} 40. Kd2 {[%clk 0:00:13.2]}
40... Nxb4 {[%clk 0:00:15.1]} 41. Bxd6 {[%clk 0:00:10.7]} 41... Nxc6 {[%clk
0:00:14.4]} 42. Bxe7 {[%clk 0:00:08.5]} 42... Kd5 {[%clk 0:00:14.1]} 43. Ba3
{[%clk 0:00:02.9]} 43... Rg2+ {[%clk 0:00:13.8]} 44. Kd1 {[%clk 0:00:02.5]}
44... Rxh2 {[%clk 0:00:12.8]} 45. Ra8 {[%clk 0:00:02.8]} 45... Ra2 {[%clk
0:00:11.5]} 0-1

[Event "Early-Titled-Tuesday-Blitz-March-26-2024"]
[Site "Chess.com"]
[Date "2024.03.26"]
[Round "8"]
[White "the_chess_child"]
[Black "azikom"]
[Result "1-0"]
[WhiteElo "2851"]
[BlackElo "2614"]
[TimeControl "180+1"]
[EndTime "9:25:27 PDT"]
[Termination "the_chess_child won by checkmate"]

1. e4 {[%clk 0:03:00.9]} 1... c6 {[%clk 0:02:36.2]} 2. d3 {[%clk 0:03:00.7]}
2... d5 {[%clk 0:02:35.1]} 3. Nd2 {[%clk 0:03:01.3]} 3... g6 {[%clk 0:02:30.3]}
4. Ngf3 {[%clk 0:03:01.4]} 4... Bg7 {[%clk 0:02:31.2]} 5. g3 {[%clk 0:03:01.9]}
5... Nf6 {[%clk 0:02:30]} 6. Bg2 {[%clk 0:03:02.1]} 6... O-O {[%clk 0:02:26.2]}
7. O-O {[%clk 0:03:02.1]} 7... a5 {[%clk 0:02:19.7]} 8. Re1 {[%clk 0:02:52.4]}
8... Na6 {[%clk 0:02:18.9]} 9. e5 {[%clk 0:02:50.8]} 9... Ne8 {[%clk 0:02:18.4]}
10. Nf1 {[%clk 0:02:50.8]} 10... Nac7 {[%clk 0:02:15.6]} 11. h4 {[%clk
0:02:49.3]} 11... Ne6 {[%clk 0:02:04.4]} 12. h5 {[%clk 0:02:45.8]} 12... N8c7
{[%clk 0:02:02.6]} 13. N1h2 {[%clk 0:02:45.4]} 13... f5 {[%clk 0:02:00.5]} 14.
hxg6 {[%clk 0:02:34.8]} 14... hxg6 {[%clk 0:02:00.2]} 15. Nh4 {[%clk 0:02:35]}
15... Qe8 {[%clk 0:01:59.2]} 16. N2f3 {[%clk 0:02:35.3]} 16... Bd7 {[%clk
0:01:55.1]} 17. c3 {[%clk 0:02:35]} 17... Qf7 {[%clk 0:01:44.4]} 18. Bh3 {[%clk
0:02:23.1]} 18... Rad8 {[%clk 0:01:17.7]} 19. Ng2 {[%clk 0:02:00.4]} 19... Bh8
{[%clk 0:01:11]} 20. Kh2 {[%clk 0:01:44.1]} 20... Qh7 {[%clk 0:01:10.3]} 21. Rh1
{[%clk 0:01:43.9]} 21... d4 {[%clk 0:00:47.2]} 22. cxd4 {[%clk 0:01:14.6]} 22...
Nb5 {[%clk 0:00:46.6]} 23. Be3 {[%clk 0:01:04]} 23... Bc8 {[%clk 0:00:46]} 24.
Kg1 {[%clk 0:00:39.9]} 24... Qf7 {[%clk 0:00:45.4]} 25. Qa4 {[%clk 0:00:29.8]}
25... b6 {[%clk 0:00:42.8]} 26. Nf4 {[%clk 0:00:29.4]} 26... Nxf4 {[%clk
0:00:41.9]} 27. Bxf4 {[%clk 0:00:22.7]} 27... Qd5 {[%clk 0:00:39.5]} 28. Bg2
{[%clk 0:00:20]} 28... Nxd4 {[%clk 0:00:39]} 29. Ng5 {[%clk 0:00:19.5]} 29...
Qb5 {[%clk 0:00:34.4]} 30. Qxb5 {[%clk 0:00:17.4]} 30... cxb5 {[%clk 0:00:35.3]}
31. Kf1 {[%clk 0:00:16.6]} 31... Ne6 {[%clk 0:00:28.4]} 32. Rh6 {[%clk
0:00:13.8]} 32... Nxg5 {[%clk 0:00:18.9]} 33. Rxg6+ {[%clk 0:00:13.4]} 33... Kf7
{[%clk 0:00:19]} 34. Rxg5 {[%clk 0:00:13.9]} 34... Rxd3 {[%clk 0:00:18.3]} 35.
Ke2 {[%clk 0:00:13.1]} 35... Rfd8 {[%clk 0:00:17.2]} 36. Rh1 {[%clk 0:00:13.1]}
36... R3d4 {[%clk 0:00:12.3]} 37. Rh7+ {[%clk 0:00:12.8]} 37... Ke6 {[%clk
0:00:12.3]} 38. Rh6+ {[%clk 0:00:08.8]} 38... Kd7 {[%clk 0:00:11.6]} 39. Rxb6
{[%clk 0:00:07.1]} 39... Rb4 {[%clk 0:00:10.5]} 40. e6+ {[%clk 0:00:07.1]} 40...
Ke8 {[%clk 0:00:08.8]} 41. Rg8# {[%clk 0:00:07.4]} 1-0

[Event "Early-Titled-Tuesday-Blitz-March-26-2024"]
[Site "Chess.com"]
[Date "2024.03.26"]
[Round "8"]
[White "Karttunen"]
[Black "Pedrada88"]
[Result "0-1"]
[WhiteElo "2719"]
[BlackElo "2561"]
[TimeControl "180+1"]
[EndTime "9:25:29 PDT"]
[Termination "Pedrada88 won by resignation"]

1. e4 {[%clk 0:03:00.9]} 1... c6 {[%clk 0:02:57.2]} 2. d4 {[%clk 0:03:00.4]}
2... d5 {[%clk 0:02:57.7]} 3. e5 {[%clk 0:03:00.7]} 3... c5 {[%clk 0:02:57.8]}
4. dxc5 {[%clk 0:02:58.1]} 4... Nc6 {[%clk 0:02:58.1]} 5. Nf3 {[%clk 0:02:54.9]}
5... Bg4 {[%clk 0:02:58.1]} 6. c3 {[%clk 0:02:54.5]} 6... e6 {[%clk 0:02:58.5]}
7. b4 {[%clk 0:02:44.8]} 7... Nxe5 {[%clk 0:02:54.7]} 8. Bb5+ {[%clk 0:02:33.9]}
8... Nc6 {[%clk 0:02:53.1]} 9. Qa4 {[%clk 0:02:27.7]} 9... Qc7 {[%clk
0:02:32.1]} 10. Bxc6+ {[%clk 0:01:24.3]} 10... bxc6 {[%clk 0:02:18.3]} 11. Nd4
{[%clk 0:01:23.6]} 11... Rc8 {[%clk 0:02:11.5]} 12. b5 {[%clk 0:01:05.6]} 12...
e5 {[%clk 0:02:03]} 13. Nxc6 {[%clk 0:01:04]} 13... Nf6 {[%clk 0:01:50.2]} 14.
Nxa7 {[%clk 0:00:54.7]} 14... Bxc5 {[%clk 0:01:17.1]} 15. b6+ {[%clk 0:00:48.8]}
15... Qd7 {[%clk 0:01:12.5]} 16. Qxd7+ {[%clk 0:00:46.6]} 16... Kxd7 {[%clk
0:01:12.9]} 17. Nxc8 {[%clk 0:00:46.2]} 17... Rxc8 {[%clk 0:01:10.7]} 18. Be3
{[%clk 0:00:32.1]} 18... Bxe3 {[%clk 0:00:59.4]} 19. fxe3 {[%clk 0:00:32.2]}
19... Rb8 {[%clk 0:00:59.6]} 20. Nd2 {[%clk 0:00:32.3]} 20... Rxb6 {[%clk
0:00:59.2]} 21. Rb1 {[%clk 0:00:32.9]} 21... Ra6 {[%clk 0:00:55.5]} 22. Rb2
{[%clk 0:00:32.6]} 22... Ra3 {[%clk 0:00:52.7]} 23. Nb3 {[%clk 0:00:32]} 23...
Ne4 {[%clk 0:00:50.4]} 24. Rc2 {[%clk 0:00:32.2]} 24... Bf5 {[%clk 0:00:29.5]}
25. O-O {[%clk 0:00:27.3]} 25... Nd6 {[%clk 0:00:29.6]} 26. Rcf2 {[%clk
0:00:26.3]} 26... g6 {[%clk 0:00:20.8]} 27. Rd1 {[%clk 0:00:26]} 27... Kc6
{[%clk 0:00:13.4]} 28. Rfd2 {[%clk 0:00:25.4]} 28... Be4 {[%clk 0:00:10]} 29.
Rf2 {[%clk 0:00:24.6]} 29... f5 {[%clk 0:00:09.1]} 30. h3 {[%clk 0:00:24.3]}
30... Nc4 {[%clk 0:00:09]} 31. Re1 {[%clk 0:00:23.5]} 31... h5 {[%clk
0:00:07.1]} 32. Kh2 {[%clk 0:00:23.4]} 32... h4 {[%clk 0:00:07.4]} 33. g3 {[%clk
0:00:23.8]} 33... hxg3+ {[%clk 0:00:07.7]} 34. Kxg3 {[%clk 0:00:24.7]} 34... Ra8
{[%clk 0:00:07.6]} 35. Rg1 {[%clk 0:00:20.7]} 35... Rh8 {[%clk 0:00:04.9]} 36.
Re1 {[%clk 0:00:20.1]} 36... g5 {[%clk 0:00:04.9]} 37. Rh2 {[%clk 0:00:20.1]}
37... f4+ {[%clk 0:00:04.4]} 38. exf4 {[%clk 0:00:20.4]} 38... gxf4+ {[%clk
0:00:04.6]} 39. Kf2 {[%clk 0:00:20.9]} 39... Ne3 {[%clk 0:00:04.5]} 40. Nd2
{[%clk 0:00:20.3]} 40... Ng4+ {[%clk 0:00:04.7]} 41. Kg1 {[%clk 0:00:18.2]}
41... Nxh2 {[%clk 0:00:04.8]} 42. Kxh2 {[%clk 0:00:19.1]} 42... Bf5 {[%clk
0:00:02.7]} 43. Rxe5 {[%clk 0:00:19.4]} 43... Rxh3+ {[%clk 0:00:02.7]} 44. Kg2
{[%clk 0:00:20]} 44... Rd3 {[%clk 0:00:03]} 45. Nf3 {[%clk 0:00:19.7]} 45... Be4
{[%clk 0:00:03]} 46. Rxe4 {[%clk 0:00:16.6]} 46... dxe4 {[%clk 0:00:03.3]} 47.
Ne5+ {[%clk 0:00:17.3]} 47... Kd5 {[%clk 0:00:03.8]} 48. Nxd3 {[%clk 0:00:18.2]}
48... exd3 {[%clk 0:00:04.1]} 49. Kf3 {[%clk 0:00:18.4]} 49... Kc4 {[%clk
0:00:04.3]} 50. a4 {[%clk 0:00:18.7]} 50... Kxc3 {[%clk 0:00:04.4]} 51. a5
{[%clk 0:00:19.2]} 51... d2 {[%clk 0:00:05]} 52. Kxf4 {[%clk 0:00:19.4]} 52...
d1=Q {[%clk 0:00:04.8]} 0-1

[Event "Early-Titled-Tuesday-Blitz-March-26-2024"]
[Site "Chess.com"]
[Date "2024.03.26"]
[Round "8"]
[White "DavidGavrilescu18"]
[Black "xasid81"]
[Result "1-0"]
[WhiteElo "2762"]
[BlackElo "2587"]
[TimeControl "180+1"]
[EndTime "9:25:31 PDT"]
[Termination "DavidGavrilescu18 won by resignation"]

1. e4 {[%clk 0:03:00.9]} 1... e6 {[%clk 0:02:53.7]} 2. d4 {[%clk 0:02:54.5]}
2... d5 {[%clk 0:02:54]} 3. e5 {[%clk 0:02:55.4]} 3... c5 {[%clk 0:02:53.3]} 4.
c3 {[%clk 0:02:48]} 4... Nc6 {[%clk 0:02:53]} 5. Nf3 {[%clk 0:02:48.3]} 5...
Nge7 {[%clk 0:02:52.9]} 6. Na3 {[%clk 0:02:47.3]} 6... cxd4 {[%clk 0:02:52.2]}
7. cxd4 {[%clk 0:02:47]} 7... Nf5 {[%clk 0:02:52.7]} 8. Nc2 {[%clk 0:02:42.1]}
8... Bd7 {[%clk 0:02:49.2]} 9. Bd3 {[%clk 0:02:41.4]} 9... Qb6 {[%clk
0:02:40.5]} 10. Bxf5 {[%clk 0:02:41.2]} 10... exf5 {[%clk 0:02:40.6]} 11. O-O
{[%clk 0:02:41.8]} 11... Be7 {[%clk 0:02:37.3]} 12. Bg5 {[%clk 0:02:40.6]} 12...
O-O {[%clk 0:02:33.6]} 13. Bxe7 {[%clk 0:02:38.9]} 13... Nxe7 {[%clk 0:02:34.5]}
14. Rb1 {[%clk 0:02:37.3]} 14... Rac8 {[%clk 0:02:30.3]} 15. h4 {[%clk
0:02:36.7]} 15... f4 {[%clk 0:02:26.8]} 16. Qd2 {[%clk 0:02:28.6]} 16... Bg4
{[%clk 0:02:08.8]} 17. Nce1 {[%clk 0:02:19.1]} 17... Ng6 {[%clk 0:02:06.5]} 18.
Rc1 {[%clk 0:02:06.7]} 18... Rxc1 {[%clk 0:02:02.8]} 19. Qxc1 {[%clk 0:02:07.6]}
19... Rc8 {[%clk 0:02:02.7]} 20. Qd2 {[%clk 0:02:06.9]} 20... h5 {[%clk
0:01:56.5]} 21. Ng5 {[%clk 0:02:04.1]} 21... f6 {[%clk 0:01:47.5]} 22. exf6
{[%clk 0:02:04.1]} 22... Qxf6 {[%clk 0:01:46.5]} 23. g3 {[%clk 0:01:28.3]} 23...
Rf8 {[%clk 0:01:34.7]} 24. Qd3 {[%clk 0:01:23.9]} 24... Re8 {[%clk 0:01:34.4]}
25. Nef3 {[%clk 0:01:09.6]} 25... a6 {[%clk 0:01:24.3]} 26. Rc1 {[%clk
0:00:38.1]} 26... Rf8 {[%clk 0:01:09.7]} 27. Rf1 {[%clk 0:00:27.8]} 27... Qd6
{[%clk 0:01:03.8]} 28. Ne5 {[%clk 0:00:25.7]} 28... Bf5 {[%clk 0:00:59.8]} 29.
Qf3 {[%clk 0:00:19.3]} 29... Nxe5 {[%clk 0:00:56.3]} 30. dxe5 {[%clk 0:00:20.2]}
30... Qxe5 {[%clk 0:00:56]} 31. gxf4 {[%clk 0:00:19.4]} 31... Qf6 {[%clk
0:00:45.6]} 32. Qxd5+ {[%clk 0:00:18.9]} 32... Kh8 {[%clk 0:00:45.2]} 33. Re1
{[%clk 0:00:18.3]} 33... Bg6 {[%clk 0:00:40.1]} 34. Ne6 {[%clk 0:00:13.9]} 34...
Re8 {[%clk 0:00:28.9]} 35. Re5 {[%clk 0:00:11.5]} 35... Bf7 {[%clk 0:00:21.2]}
36. f5 {[%clk 0:00:06.5]} 36... Qxh4 {[%clk 0:00:18.3]} 37. Qf3 {[%clk 0:00:07]}
37... Qg4+ {[%clk 0:00:15.6]} 38. Qxg4 {[%clk 0:00:07.4]} 38... hxg4 {[%clk
0:00:16.5]} 39. Kg2 {[%clk 0:00:04.3]} 39... g6 {[%clk 0:00:16.5]} 40. Ng5
{[%clk 0:00:04.8]} 40... Kg7 {[%clk 0:00:15.2]} 41. Rxe8 {[%clk 0:00:04.3]}
41... Bxe8 {[%clk 0:00:15.2]} 42. fxg6 {[%clk 0:00:02.8]} 42... Kxg6 {[%clk
0:00:14]} 43. Ne6 {[%clk 0:00:03.3]} 43... Kf6 {[%clk 0:00:13.6]} 44. Nc5 {[%clk
0:00:02.6]} 44... a5 {[%clk 0:00:11.9]} 45. Kg3 {[%clk 0:00:02.6]} 45... b6
{[%clk 0:00:12.2]} 46. Ne4+ {[%clk 0:00:02.5]} 46... Kf5 {[%clk 0:00:12.6]} 47.
Nd6+ {[%clk 0:00:03]} 47... Ke5 {[%clk 0:00:12.9]} 48. Nxe8 {[%clk 0:00:03.9]}
1-0

[Event "Early-Titled-Tuesday-Blitz-March-26-2024"]
[Site "Chess.com"]
[Date "2024.03.26"]
[Round "8"]
[White "Staudenhocker43"]
[Black "reevecanada"]
[Result "1/2-1/2"]
[WhiteElo "2558"]
[BlackElo "2670"]
[TimeControl "180+1"]
[EndTime "9:25:39 PDT"]
[Termination "Game drawn - insufficient material"]

1. e4 {[%clk 0:03:00.9]} 1... c5 {[%clk 0:02:48]} 2. Nf3 {[%clk 0:03:00.2]} 2...
d6 {[%clk 0:02:48.2]} 3. Bb5+ {[%clk 0:02:59.3]} 3... Bd7 {[%clk 0:02:44.6]} 4.
Bxd7+ {[%clk 0:02:59.1]} 4... Qxd7 {[%clk 0:02:45.3]} 5. c4 {[%clk 0:02:59.2]}
5... e5 {[%clk 0:02:44.2]} 6. d3 {[%clk 0:02:58.3]} 6... Nc6 {[%clk 0:02:44.7]}
7. Nc3 {[%clk 0:02:58.3]} 7... Be7 {[%clk 0:02:44.6]} 8. O-O {[%clk 0:02:57.3]}
8... Nf6 {[%clk 0:02:43.4]} 9. Bg5 {[%clk 0:02:56.3]} 9... O-O {[%clk
0:02:42.7]} 10. Bxf6 {[%clk 0:02:56]} 10... Bxf6 {[%clk 0:02:43.4]} 11. Nd5
{[%clk 0:02:54.8]} 11... Bd8 {[%clk 0:02:43.9]} 12. a3 {[%clk 0:02:51.1]} 12...
Ne7 {[%clk 0:02:43.6]} 13. Nxe7+ {[%clk 0:02:50.2]} 13... Bxe7 {[%clk 0:02:42]}
14. b4 {[%clk 0:02:49.6]} 14... b6 {[%clk 0:02:41.6]} 15. Qe2 {[%clk 0:02:46.5]}
15... f5 {[%clk 0:02:41.5]} 16. exf5 {[%clk 0:02:41.3]} 16... Rxf5 {[%clk
0:02:40.2]} 17. Nd2 {[%clk 0:02:41.2]} 17... Raf8 {[%clk 0:02:38.2]} 18. Ne4
{[%clk 0:02:40.7]} 18... d5 {[%clk 0:02:35.5]} 19. cxd5 {[%clk 0:02:39]} 19...
Qxd5 {[%clk 0:02:36]} 20. Qa2 {[%clk 0:02:26.3]} 20... Qxa2 {[%clk 0:02:34.1]}
21. Rxa2 {[%clk 0:02:27.2]} 21... Rd8 {[%clk 0:02:20.3]} 22. bxc5 {[%clk
0:02:26.4]} 22... bxc5 {[%clk 0:02:20.8]} 23. Rd1 {[%clk 0:02:14.1]} 23... c4
{[%clk 0:02:13.7]} 24. Rad2 {[%clk 0:02:13.2]} 24... Rd4 {[%clk 0:02:10.6]} 25.
f3 {[%clk 0:02:10.2]} 25... Bxa3 {[%clk 0:02:09]} 26. dxc4 {[%clk 0:02:07.8]}
26... Rxc4 {[%clk 0:02:07.7]} 27. Ra2 {[%clk 0:02:04.4]} 27... Bf8 {[%clk
0:01:50.6]} 28. Rxa7 {[%clk 0:02:00]} 28... Rf4 {[%clk 0:01:49.6]} 29. Rb7
{[%clk 0:01:52.5]} 29... Rd4 {[%clk 0:01:47.6]} 30. Rxd4 {[%clk 0:01:45.8]}
30... exd4 {[%clk 0:01:48.5]} 31. Rd7 {[%clk 0:01:45.8]} 31... g5 {[%clk
0:01:48.7]} 32. h3 {[%clk 0:01:40.2]} 32... h6 {[%clk 0:01:47.4]} 33. Kf1 {[%clk
0:01:36.8]} 33... Bg7 {[%clk 0:01:46.4]} 34. Ke2 {[%clk 0:01:30.1]} 34... Rf7
{[%clk 0:01:43.1]} 35. Rxf7 {[%clk 0:01:27]} 35... Kxf7 {[%clk 0:01:44]} 36. Kd3
{[%clk 0:01:23]} 36... Ke6 {[%clk 0:01:44.1]} 37. Ng3 {[%clk 0:01:21.4]} 37...
Be5 {[%clk 0:01:42.3]} 38. Ne2 {[%clk 0:01:18.3]} 38... Kd5 {[%clk 0:01:41.7]}
39. g3 {[%clk 0:01:17.3]} 39... h5 {[%clk 0:01:39.8]} 40. f4 {[%clk 0:01:13]}
40... gxf4 {[%clk 0:01:37.8]} 41. gxf4 {[%clk 0:01:07.5]} 41... Bf6 {[%clk
0:01:36.8]} 42. Ng3 {[%clk 0:01:06.6]} 42... h4 {[%clk 0:01:34.3]} 43. Ne4
{[%clk 0:00:59.6]} 43... Be7 {[%clk 0:01:29.4]} 44. Nd2 {[%clk 0:00:59.4]} 44...
Bd8 {[%clk 0:01:26.5]} 45. Nf3 {[%clk 0:00:56.5]} 45... Bf6 {[%clk 0:01:25.4]}
46. f5 {[%clk 0:00:56.7]} 46... Kc5 {[%clk 0:01:22.6]} 47. Nh2 {[%clk
0:00:50.3]} 47... Kd5 {[%clk 0:01:21.3]} 48. Ng4 {[%clk 0:00:50.1]} 48... Bg7
{[%clk 0:01:21.3]} 49. f6 {[%clk 0:00:48.9]} 49... Bf8 {[%clk 0:01:21.1]} 50. f7
{[%clk 0:00:42.1]} 50... Bg7 {[%clk 0:01:19.9]} 51. Nh2 {[%clk 0:00:35.5]} 51...
Ke6 {[%clk 0:01:14.5]} 52. Nf3 {[%clk 0:00:35.6]} 52... Kxf7 {[%clk 0:01:11]}
53. Nxh4 {[%clk 0:00:36.2]} 53... Ke6 {[%clk 0:01:11.6]} 54. Nf3 {[%clk
0:00:36]} 54... Kd5 {[%clk 0:01:11.9]} 55. h4 {[%clk 0:00:35.9]} 55... Bf6
{[%clk 0:01:12.2]} 56. h5 {[%clk 0:00:35.6]} 56... Bg7 {[%clk 0:01:12.8]} 57.
Nh4 {[%clk 0:00:34]} 57... Ke5 {[%clk 0:01:09.4]} 58. Nf3+ {[%clk 0:00:31.8]}
58... Kd5 {[%clk 0:01:09.3]} 59. Ng5 {[%clk 0:00:26.8]} 59... Bf6 {[%clk
0:01:07.9]} 60. Ne4 {[%clk 0:00:21.3]} 60... Bg7 {[%clk 0:01:07]} 61. Nf2 {[%clk
0:00:20.7]} 61... Ke5 {[%clk 0:01:06]} 62. h6 {[%clk 0:00:20]} 62... Bh8 {[%clk
0:01:05.8]} 63. Ne4 {[%clk 0:00:18.9]} 63... Kf5 {[%clk 0:01:04.5]} 64. Nd2
{[%clk 0:00:18.9]} 64... Ke5 {[%clk 0:01:02.1]} 65. Nb3 {[%clk 0:00:19.8]} 65...
Kd5 {[%clk 0:01:02.2]} 66. h7 {[%clk 0:00:19.9]} 66... Bg7 {[%clk 0:01:02.2]}
67. Nd2 {[%clk 0:00:19.7]} 67... Ke6 {[%clk 0:01:01.9]} 68. Ne4 {[%clk
0:00:19.5]} 68... Kf7 {[%clk 0:01:00.5]} 69. Nd6+ {[%clk 0:00:17.1]} 69... Kg6
{[%clk 0:01:00.5]} 70. Nb5 {[%clk 0:00:16.6]} 70... Kxh7 {[%clk 0:01:00.2]} 71.
Nxd4 {[%clk 0:00:17.5]} 1/2-1/2

[Event "Early-Titled-Tuesday-Blitz-March-26-2024"]
[Site "Chess.com"]
[Date "2024.03.26"]
[Round "8"]
[White "Cobysters"]
[Black "Matibar"]
[Result "1-0"]
[WhiteElo "2586"]
[BlackElo "2713"]
[TimeControl "180+1"]
[EndTime "9:25:40 PDT"]
[Termination "Cobysters won by resignation"]

1. c4 {[%clk 0:03:00.9]} 1... b6 {[%clk 0:02:58.2]} 2. Nc3 {[%clk 0:03:00.7]}
2... Bb7 {[%clk 0:02:59.1]} 3. d4 {[%clk 0:03:01.6]} 3... e6 {[%clk 0:02:58.6]}
4. Nf3 {[%clk 0:02:58.6]} 4... f5 {[%clk 0:02:56.2]} 5. Bg5 {[%clk 0:02:54.6]}
5... Be7 {[%clk 0:02:54.5]} 6. h4 {[%clk 0:02:51.4]} 6... Nf6 {[%clk 0:02:52.3]}
7. e3 {[%clk 0:02:51]} 7... O-O {[%clk 0:02:51.1]} 8. Bd3 {[%clk 0:02:49.1]}
8... h6 {[%clk 0:02:29.8]} 9. Bxf6 {[%clk 0:02:45.4]} 9... Bxf6 {[%clk
0:02:29.6]} 10. h5 {[%clk 0:02:45.1]} 10... Nc6 {[%clk 0:02:05.5]} 11. a3 {[%clk
0:02:44.5]} 11... d6 {[%clk 0:01:49.1]} 12. Qc2 {[%clk 0:02:09.7]} 12... Ne7
{[%clk 0:01:41.2]} 13. O-O-O {[%clk 0:02:08.9]} 13... a6 {[%clk 0:01:22.1]} 14.
Rde1 {[%clk 0:02:06.7]} 14... b5 {[%clk 0:01:22.4]} 15. e4 {[%clk 0:02:03.7]}
15... fxe4 {[%clk 0:01:12.9]} 16. Bxe4 {[%clk 0:02:02.8]} 16... d5 {[%clk
0:00:51.6]} 17. Bh7+ {[%clk 0:01:53.2]} 17... Kh8 {[%clk 0:00:51.3]} 18. c5
{[%clk 0:01:45.4]} 18... Nc6 {[%clk 0:00:44.9]} 19. Rxe6 {[%clk 0:01:43.4]}
19... Nxd4 {[%clk 0:00:44.7]} 20. Nxd4 {[%clk 0:01:43.4]} 20... Bxd4 {[%clk
0:00:45.6]} 21. Bg6 {[%clk 0:01:11.6]} 21... Qg5+ {[%clk 0:00:30.2]} 22. Kb1
{[%clk 0:01:11.2]} 22... Qxg2 {[%clk 0:00:27.3]} 23. Rd1 {[%clk 0:01:06]} 23...
Bxc5 {[%clk 0:00:27.1]} 24. Qd3 {[%clk 0:00:55.4]} 24... Rxf2 {[%clk 0:00:26]}
25. Rde1 {[%clk 0:00:38.9]} 25... Raf8 {[%clk 0:00:25.4]} 26. Re8 {[%clk
0:00:37.1]} 26... d4 {[%clk 0:00:23.9]} 27. Nd1 {[%clk 0:00:34.1]} 27... Rf6
{[%clk 0:00:19.2]} 28. b4 {[%clk 0:00:30.5]} 28... Bd6 {[%clk 0:00:18.8]} 29.
Qxd4 {[%clk 0:00:27.7]} 29... Qd5 {[%clk 0:00:17.1]} 30. Qc3 {[%clk 0:00:20.9]}
30... Bc6 {[%clk 0:00:14.7]} 31. Rxf8+ {[%clk 0:00:20.2]} 31... Rxf8 {[%clk
0:00:14.5]} 32. Be4 {[%clk 0:00:20.4]} 32... Qxe4+ {[%clk 0:00:12.1]} 33. Rxe4
{[%clk 0:00:21.3]} 33... Bxe4+ {[%clk 0:00:12.5]} 34. Kc1 {[%clk 0:00:20.8]}
34... Re8 {[%clk 0:00:10.7]} 35. Qe3 {[%clk 0:00:17.4]} 35... Bc6 {[%clk
0:00:10]} 36. Qd4 {[%clk 0:00:17]} 36... Be5 {[%clk 0:00:08.9]} 37. Qc5 {[%clk
0:00:16.9]} 37... Bf3 {[%clk 0:00:07.5]} 38. Kd2 {[%clk 0:00:16.8]} 38... Bf4+
{[%clk 0:00:06.6]} 39. Kc2 {[%clk 0:00:15.6]} 39... Bg5 {[%clk 0:00:05.5]} 40.
Nc3 {[%clk 0:00:15.7]} 40... Bxh5 {[%clk 0:00:05.7]} 41. Qxc7 {[%clk 0:00:16]}
41... Bg6+ {[%clk 0:00:06.2]} 42. Kb3 {[%clk 0:00:16.1]} 42... Rf8 {[%clk
0:00:05.4]} 43. Qc6 {[%clk 0:00:16.3]} 43... Bf7+ {[%clk 0:00:05.3]} 44. Kc2
{[%clk 0:00:16.5]} 44... Kg8 {[%clk 0:00:06]} 45. Qxa6 {[%clk 0:00:16.7]} 45...
h5 {[%clk 0:00:05.1]} 46. Qxb5 {[%clk 0:00:16.6]} 46... Bf6 {[%clk 0:00:05.7]}
47. Qf5 {[%clk 0:00:16.3]} 47... Re8 {[%clk 0:00:04.3]} 48. Ne4 {[%clk 0:00:16]}
48... Be5 {[%clk 0:00:03]} 49. Ng5 {[%clk 0:00:15.9]} 49... Bd5 {[%clk
0:00:03.2]} 50. Qh7+ {[%clk 0:00:15.2]} 50... Kf8 {[%clk 0:00:03.5]} 51. Qf5+
{[%clk 0:00:14.9]} 51... Bf6 {[%clk 0:00:03.6]} 52. Nh7+ {[%clk 0:00:14.9]}
52... Ke7 {[%clk 0:00:04]} 53. Nxf6 {[%clk 0:00:15.8]} 53... gxf6 {[%clk
0:00:04.8]} 54. Qxd5 {[%clk 0:00:16.2]} 1-0